[Event "Najdorf Memorial-A 2022"]
[Site "Warsaw"]
[Date "2022.07.15"]
[Round "7.11"]
[White "Kutowski, Marcel"]
[Black "Sowul, Bartosz"]
[Result "1/2-1/2"]
[ECO "B41"]
[WhiteElo "1961"]
[BlackElo "2283"]
[Annotator "ChessBase"]
[PlyCount "116"]
[EventDate "2022.07.09"]
[EventType "swiss"]
[EventCountry "POL"]
[SourceTitle "playchess.com"]
[Source "ChessBase"]
[SourceQuality "1"]
[TimeControl "40/5400+30:1800+30"]

1. e4 {[%emt 0:00:02]} c5 {[%emt 0:02:27]} 2. Nf3 {[%emt 0:00:12]} e6 {[%emt 0:01:48]} 3. d4 {[%emt 0:03:23]} cxd4 {[%emt 0:00:15]} 4. Nxd4 {[%emt 0:00:04]} a6 {[%emt 0:00:17]} 5. c4 {[%emt 0:01:01]} Qc7 {[%emt 0:03:42]} 6. Nc3 {[%emt 0:03:09]} Nf6 {[%emt 0:00:40]} 7. a3 {[%emt 0:00:26]} b6 {[%emt 0:01:47]} 8. Be3 {[%emt 0:04:30]} Bb7 {[%emt 0:00:48]} 9. f3 {[%emt 0:00:23]} d6 {[%emt 0:02:19]} 10. Be2 {[%emt 0:00:39]} Nbd7 {[%emt 0:00:20]} 11. O-O {[%emt 0:01:08]} Be7 {[%emt 0:00:52]} 12. Rc1 {[%emt 0:01:22]} O-O {[%emt 0:00:11]} 13. b4 {[%emt 0:05:04]} Rac8 {[%emt 0:01:52]} 14. Nb3 {[%emt 0:01:19]} Qb8 {[%emt 0:10:45]} 15. Qd2 {[%emt 0:04:47]} Bd8 {[%emt 0:05:59]} 16. Kh1 {[%emt 0:05:39]} Bc7 {[%emt 0:12:39]} 17. Rfd1 {[%emt 0:09:06]} Rcd8 {[%emt 0:06:15]} 18. Bf1 {[%emt 0:09:30]} d5 {[%emt 0:06:06]} 19. cxd5 {[%emt 0:07:05]} exd5 {[%emt 0:00:16]} 20. Nxd5 {[%emt 0:01:54]} Nxd5 {[%emt 0:00:23]} 21. exd5 {[%emt 0:00:35]} Nf6 {[%emt 0:01:01]} 22. Qc2 {[%emt 0:09:47]} Bxh2 {[%emt 0:05:52]} 23. Bxb6 {[%emt 0:02:25]} Rxd5 {[%emt 0:05:35]} 24. Rxd5 {[%emt 0:03:29]} Nxd5 {[%emt 0:00:14]} 25. Bc5 {[%emt 0:03:10]} Re8 {[%emt 0:19:23]} 26. Bd3 {[%emt 0:06:10]} g6 {[%emt 0:00:34]} 27. Bd4 {[%emt 0:05:03]} Bg3 {[%emt 0:03:00]} 28. Bf2 {[%emt 0:08:46]} Re5 {[%emt 0:02:51]} 29. Be4 {[%emt 0:01:32]} Bf4 {[%emt 0:04:43]} 30. Rd1 {[%emt 0:01:13]} Qf8 {[%emt 0:00:22]} 31. g3 {[%emt 0:01:44]} Qh6+ {[%emt 0:01:06]} 32. Kg2 {[%emt 0:00:05]} Rh5 {[%emt 0:01:27]} 33. Bxd5 {[%emt 0:00:25]} Rh2+ {[%emt 0:00:28]} 34. Kf1 {[%emt 0:00:22]} Qh3+ {[%emt 0:00:25]} 35. Ke1 {[%emt 0:00:20]} Bxd5 {[%emt 0:00:35]} 36. gxf4 {[%emt 0:01:53]} Qe6+ {[%emt 0:00:32]} 37. Qe2 {[%emt 0:00:43]} Rh1+ {[%emt 0:00:31]} 38. Kd2 {[%emt 0:00:07]} Rxd1+ {[%emt 0:00:20]} 39. Kxd1 {[%emt 0:00:40]} Bxb3+ {[%emt 0:00:14]} 40. Ke1 {[%emt 0:00:00]} Qc6 {[%emt 0:00:00]} 41. Bd4 {[%emt 0:02:02]} Qc1+ {[%emt 0:09:29]} 42. Kf2 {[%emt 0:00:33]} Qc2 {[%emt 0:00:02]} 43. Qxc2 {[%emt 0:00:13]} Bxc2 {[%emt 0:00:05]} 44. Bf6 {[%emt 0:01:20]} Kf8 {[%emt 0:07:35]} 45. Ke3 {[%emt 0:01:12]} Ke8 {[%emt 0:00:07]} 46. Kd4 {[%emt 0:00:35]} Kd7 {[%emt 0:00:09]} 47. Ke5 {[%emt 0:00:48]} Bd1 {[%emt 0:02:24]} 48. Bh4 {[%emt 0:01:47]} Bxf3 {[%emt 0:01:50]} 49. Kf6 {[%emt 0:01:14]} Bd5 {[%emt 0:02:43]} 50. a4 {[%emt 0:02:51]} Bb3 {[%emt 0:01:28]} 51. b5 {[%emt 0:01:48]} axb5 {[%emt 0:08:38]} 52. axb5 {[%emt 0:00:09]} Be6 {[%emt 0:00:15]} 53. b6 {[%emt 0:00:45]} Kc6 {[%emt 0:00:18]} 54. Bf2 {[%emt 0:00:14]} h6 {[%emt 0:00:11]} 55. Kg7 {[%emt 0:00:31]} g5 {[%emt 0:02:29]} 56. Kxh6 {[%emt 0:00:12]} gxf4 {[%emt 0:00:06]} 57. Kg5 {[%emt 0:00:11]} f3 {[%emt 0:00:06]} 58. Kf4 {[%emt 0:00:13]} Bd5 {[%emt 0:00:21]} 1/2-1/2

[Event "Najdorf Memorial-A 2022"]
[Site "Warsaw"]
[Date "2022.07.15"]
[Round "7.12"]
[White "Podgorski, Maciej"]
[Black "Fiedorek, Michal"]
[Result "1-0"]
[ECO "B69"]
[WhiteElo "1967"]
[BlackElo "2289"]
[Annotator "ChessBase"]
[PlyCount "71"]
[EventDate "2022.07.09"]
[EventType "swiss"]
[EventCountry "POL"]
[SourceTitle "playchess.com"]
[Source "ChessBase"]
[SourceQuality "1"]
[TimeControl "40/5400+30:1800+30"]

1. e4 {[%emt 0:00:45]} c5 {[%emt 0:06:57]} 2. Nf3 {[%emt 0:00:12]} d6 {[%emt 0:00:04]} 3. d4 {[%emt 0:00:05]} cxd4 {[%emt 0:00:05]} 4. Nxd4 {[%emt 0:00:03]} Nf6 {[%emt 0:00:12]} 5. Nc3 {[%emt 0:00:05]} Nc6 {[%emt 0:00:04]} 6. Bg5 {[%emt 0:00:32]} e6 {[%emt 0:00:10]} 7. Qd2 {[%emt 0:00:07]} a6 {[%emt 0:00:05]} 8. O-O-O {[%emt 0:01:23]} Bd7 {[%emt 0:00:15]} 9. f4 {[%emt 0:01:12]} Be7 {[%emt 0:05:18]} 10. Nf3 {[%emt 0:00:55]} b5 {[%emt 0:01:03]} 11. Bxf6 {[%emt 0:04:20]} gxf6 {[%emt 0:00:44]} 12. Kb1 {[%emt 0:03:23]} Qa5 {[%emt 0:02:30]} 13. f5 {[%emt 0:04:05]} Rc8 {[%emt 0:01:14]} 14. g3 {[%emt 0:13:41]} Ne5 {[%emt 0:12:45]} 15. Nxe5 {[%emt 0:03:28]} fxe5 {[%emt 0:00:57]} 16. Bh3 {[%emt 0:02:07]} b4 {[%emt 0:04:03]} 17. Ne2 {[%emt 0:04:20]} Qc5 {[%emt 0:02:09]} 18. Nc1 {[%emt 0:05:17]} O-O {[%emt 0:18:24]} 19. g4 {[%emt 0:19:01]} Kh8 {[%emt 0:06:51]} 20. g5 {[%emt 0:06:52]} Rg8 {[%emt 0:04:57]} 21. f6 {[%emt 0:04:12]} Bd8 {[%emt 0:01:20]} 22. Bg2 {[%emt 0:07:12]} a5 {[%emt 0:04:07]} 23. h4 {[%emt 0:01:55]} Ba4 {[%emt 0:07:07]} 24. Nb3 {[%emt 0:03:56]} Qc7 {[%emt 0:05:41]} 25. Bf3 {[%emt 0:06:13]} Bb5 {[%emt 0:05:32]} 26. Na1 {[%emt 0:02:49]} Qc4 {[%emt 0:07:50]} 27. Qxd6 {[%emt 0:00:24]} Bc7 {[%emt 0:00:09]} 28. Qe7 {[%emt 0:01:26]} a4 {[%emt 0:02:56]} 29. Rhe1 {[%emt 0:02:37]} a3 {[%emt 0:00:52]} 30. Be2 {[%emt 0:00:12]} Qc6 {[%emt 0:00:22]} 31. Bxb5 {[%emt 0:00:26]} Qxb5 {[%emt 0:00:03]} 32. Rd7 {[%emt 0:01:16]} b3 {[%emt 0:01:02]} 33. axb3 {[%emt 0:01:51]} Qa5 {[%emt 0:00:25]} 34. b4 {[%emt 0:00:25]} a2+ {[%emt 0:00:24]} 35. Kc1 {[%emt 0:00:07]} Qa4 {[%emt 0:00:51]} 36. Qxf7 {[%emt 0:00:17]} 1-0

[Event "Najdorf Memorial-A 2022"]
[Site "Warsaw"]
[Date "2022.07.15"]
[Round "7.13"]
[White "Kaczmarek, Arkadiusz"]
[Black "Maslanka, Wojciech"]
[Result "0-1"]
[ECO "D38"]
[WhiteElo "2147"]
[BlackElo "2000"]
[Annotator "ChessBase"]
[PlyCount "82"]
[EventDate "2022.07.09"]
[EventType "swiss"]
[EventCountry "POL"]
[SourceTitle "playchess.com"]
[Source "ChessBase"]
[SourceQuality "1"]
[TimeControl "40/5400+30:1800+30"]

1. d4 Nf6 {[%emt 0:00:12]} 2. c4 {[%emt 0:00:16]} e6 {[%emt 0:00:38]} 3. Nf3 {[%emt 0:00:15]} d5 {[%emt 0:00:30]} 4. Nc3 {[%emt 0:00:16]} Bb4 {[%emt 0:00:34]} 5. Qb3 {[%emt 0:00:30]} a5 {[%emt 0:02:06]} 6. a3 {[%emt 0:01:31]} a4 {[%emt 0:01:16]} 7. Qc2 {[%emt 0:00:13]} Bxc3+ {[%emt 0:00:10]} 8. bxc3 {[%emt 0:14:02]} dxc4 {[%emt 0:00:04]} 9. g4 {[%emt 0:00:15]} Qd5 {[%emt 0:08:14]} 10. Rg1 {[%emt 0:22:43]} Qa5 {[%emt 0:31:46]} 11. Bd2 {[%emt 0:10:18]} b5 {[%emt 0:05:18]} 12. g5 {[%emt 0:01:11]} Nfd7 {[%emt 0:00:11]} 13. e4 {[%emt 0:04:48]} Bb7 {[%emt 0:00:30]} 14. O-O-O {[%emt 0:00:26]} Na6 {[%emt 0:02:08]} 15. h4 {[%emt 0:02:40]} O-O-O {[%emt 0:05:13]} 16. Bh3 {[%emt 0:02:43]} Kb8 {[%emt 0:00:34]} 17. Kb2 {[%emt 0:11:34]} Ka8 {[%emt 0:13:19]} 18. Ka2 {[%emt 0:05:23]} Rb8 {[%emt 0:11:36]} 19. Rb1 {[%emt 0:00:36]} Rhd8 {[%emt 0:00:23]} 20. Bf4 {[%emt 0:05:17]} Rbc8 {[%emt 0:05:21]} 21. Rge1 {[%emt 0:02:41]} c5 {[%emt 0:02:47]} 22. Qb2 {[%emt 0:00:23]} b4 {[%emt 0:00:21]} 23. axb4 {[%emt 0:01:19]} cxb4 {[%emt 0:00:09]} 24. cxb4 {[%emt 0:00:19]} Qb5 {[%emt 0:00:07]} 25. Qc3 {[%emt 0:02:48]} Nb6 {[%emt 0:00:32]} 26. Bf1 {[%emt 0:02:25]} f5 {[%emt 0:02:25]} 27. gxf6 {[%emt 0:01:33]} gxf6 {[%emt 0:00:04]} 28. Nd2 {[%emt 0:01:34]} e5 {[%emt 0:01:10]} 29. Be3 {[%emt 0:02:31]} exd4 {[%emt 0:03:47]} 30. Bxd4 {[%emt 0:00:15]} a3 {[%emt 0:03:26]} 31. Be3 {[%emt 0:02:55]} Na4 {[%emt 0:00:30]} 32. Qxa3 {[%emt 0:00:42]} Rc7 {[%emt 0:00:38]} 33. Rec1 {[%emt 0:01:12]} Rxd2+ {[%emt 0:00:24]} 34. Bxd2 {[%emt 0:00:20]} Bxe4 {[%emt 0:00:03]} 35. Ra1 {[%emt 0:01:25]} Rd7 {[%emt 0:00:57]} 36. Bc3 {[%emt 0:00:39]} Nxc3+ {[%emt 0:00:28]} 37. Qxc3 {[%emt 0:00:20]} Qa4+ {[%emt 0:00:30]} 38. Kb2 {[%emt 0:00:37]} Rd2+ {[%emt 0:00:04]} 39. Rc2 {[%emt 0:00:32]} Rxc2+ {[%emt 0:00:03]} 40. Qxc2 {[%emt 0:00:00]} Qxc2+ {[%emt 0:00:00]} 41. Ka3 {[%emt 0:01:10]} Qb3# {[%emt 0:00:10]} 0-1

[Event "Najdorf Memorial-A 2022"]
[Site "Warsaw"]
[Date "2022.07.15"]
[Round "7.14"]
[White "Vanduyfhuys, Daria"]
[Black "Zalega, Maciej"]
[Result "1/2-1/2"]
[ECO "E15"]
[WhiteElo "2094"]
[BlackElo "1912"]
[Annotator "ChessBase"]
[PlyCount "84"]
[EventDate "2022.07.09"]
[EventType "swiss"]
[EventCountry "POL"]
[SourceTitle "playchess.com"]
[Source "ChessBase"]
[SourceQuality "1"]
[TimeControl "40/5400+30:1800+30"]

1. d4 {[%emt 0:00:02]} Nf6 {[%emt 0:00:09]} 2. c4 {[%emt 0:00:07]} e6 {[%emt 0:00:02]} 3. Nf3 {[%emt 0:00:10]} b6 {[%emt 0:00:03]} 4. g3 {[%emt 0:00:12]} Ba6 {[%emt 0:00:04]} 5. b3 {[%emt 0:00:39]} Bb4+ {[%emt 0:00:54]} 6. Bd2 {[%emt 0:00:10]} Be7 {[%emt 0:00:03]} 7. Bg2 {[%emt 0:00:33]} O-O {[%emt 0:00:20]} 8. O-O {[%emt 0:02:05]} d5 {[%emt 0:00:04]} 9. Bc3 {[%emt 0:03:42]} c5 {[%emt 0:00:19]} 10. Nbd2 {[%emt 0:06:43]} Qc7 {[%emt 0:04:19]} 11. dxc5 {[%emt 0:05:39]} bxc5 {[%emt 0:05:02]} 12. Bb2 {[%emt 0:18:01]} Nbd7 {[%emt 0:04:48]} 13. Qc2 {[%emt 0:04:12]} Rac8 {[%emt 0:04:18]} 14. Rfe1 {[%emt 0:03:17]} Rfd8 {[%emt 0:03:38]} 15. Rac1 {[%emt 0:01:47]} Bb7 {[%emt 0:07:29]} 16. Qb1 {[%emt 0:05:45]} Nb6 {[%emt 0:07:44]} 17. cxd5 {[%emt 0:04:00]} exd5 {[%emt 0:08:05]} 18. Be5 {[%emt 0:05:21]} Qc6 {[%emt 0:10:06]} 19. Nd4 {[%emt 0:06:51]} Qe8 {[%emt 0:00:34]} 20. Nf5 {[%emt 0:00:10]} Nbd7 {[%emt 0:01:34]} 21. Bd6 {[%emt 0:09:49]} Bf8 {[%emt 0:02:30]} 22. e4 {[%emt 0:00:14]} d4 {[%emt 0:04:18]} 23. Nc4 {[%emt 0:05:54]} Nb6 {[%emt 0:04:58]} 24. Bxf8 {[%emt 0:01:06]} Qxf8 {[%emt 0:00:52]} 25. Nfd6 {[%emt 0:00:27]} Rc7 {[%emt 0:24:02]} 26. Nb5 {[%emt 0:14:11]} Re7 {[%emt 0:03:04]} 27. Nxa7 {[%emt 0:00:40]} Nxc4 {[%emt 0:00:31]} 28. bxc4 {[%emt 0:00:47]} Bxe4 {[%emt 0:00:32]} 29. Bxe4 {[%emt 0:00:09]} Rxa7 {[%emt 0:00:12]} 30. Bf3 {[%emt 0:00:43]} Qd6 {[%emt 0:00:48]} 31. Rc2 {[%emt 0:00:23]} Ra3 {[%emt 0:01:17]} 32. Kg2 {[%emt 0:00:44]} Rxf3 {[%emt 0:02:45]} 33. Kxf3 {[%emt 0:00:04]} Qc6+ {[%emt 0:00:05]} 34. Kf4 {[%emt 0:00:23]} d3 {[%emt 0:00:36]} 35. Rb2 {[%emt 0:00:49]} Rd4+ {[%emt 0:01:10]} 36. Ke3 {[%emt 0:00:08]} g6 {[%emt 0:00:19]} 37. f3 {[%emt 0:00:37]} Qe6+ {[%emt 0:00:40]} 38. Kf2 {[%emt 0:00:40]} Qxc4 {[%emt 0:00:18]} 39. Rd1 {[%emt 0:00:28]} Nd5 {[%emt 0:00:43]} 40. Rbd2 {[%emt 0:00:00]} Nc3 {[%emt 0:00:00]} 41. Qb8+ {[%emt 0:00:41]} Kg7 {[%emt 0:01:12]} 42. Qe5+ {[%emt 0:00:58]} Kg8 {[%emt 0:02:05]} 1/2-1/2

[Event "Najdorf Memorial-A 2022"]
[Site "Warsaw"]
[Date "2022.07.15"]
[Round "7.15"]
[White "Polak, Michal"]
[Black "Janeczko, Jakub"]
[Result "0-1"]
[ECO "A43"]
[WhiteElo "1944"]
[BlackElo "2080"]
[Annotator "ChessBase"]
[PlyCount "80"]
[EventDate "2022.07.09"]
[EventType "swiss"]
[EventCountry "POL"]
[SourceTitle "playchess.com"]
[Source "ChessBase"]
[SourceQuality "1"]
[TimeControl "40/5400+30:1800+30"]

1. d4 {[%emt 0:00:14]} c5 {[%emt 0:06:22]} 2. d5 {[%emt 0:00:11]} g6 {[%emt 0:00:05]} 3. c4 {[%emt 0:00:10]} d6 {[%emt 0:00:08]} 4. g3 {[%emt 0:00:25]} Bg7 {[%emt 0:00:14]} 5. Nf3 {[%emt 0:00:17]} Nf6 {[%emt 0:08:15]} 6. Nc3 {[%emt 0:00:13]} O-O {[%emt 0:00:19]} 7. Bg2 {[%emt 0:00:05]} e6 {[%emt 0:00:59]} 8. O-O {[%emt 0:00:13]} exd5 {[%emt 0:00:17]} 9. cxd5 {[%emt 0:00:11]} Re8 {[%emt 0:05:35]} 10. Re1 {[%emt 0:01:55]} Ne4 {[%emt 0:01:19]} 11. Nxe4 {[%emt 0:00:29]} Rxe4 {[%emt 0:00:03]} 12. Bf4 {[%emt 0:11:24]} b5 {[%emt 0:13:07]} 13. a4 {[%emt 0:11:18]} Ba6 {[%emt 0:13:02]} 14. axb5 {[%emt 0:05:07]} Bxb5 {[%emt 0:00:21]} 15. Nd2 {[%emt 0:01:48]} Rd4 {[%emt 0:05:46]} 16. Ra2 {[%emt 0:19:25]} g5 {[%emt 0:08:25]} 17. Be3 {[%emt 0:00:44]} Rb4 {[%emt 0:00:06]} 18. Qc2 {[%emt 0:02:15]} Qf6 {[%emt 0:07:05]} 19. Ne4 {[%emt 0:03:07]} Qg6 {[%emt 0:00:02]} 20. b3 {[%emt 0:10:17]} Na6 {[%emt 0:08:47]} 21. Nxg5 {[%emt 0:09:56]} Qxc2 {[%emt 0:01:08]} 22. Rxc2 {[%emt 0:00:02]} Re8 {[%emt 0:02:57]} 23. Bf4 {[%emt 0:02:01]} Be5 {[%emt 0:02:46]} 24. Bd2 {[%emt 0:07:37]} Rxb3 {[%emt 0:00:25]} 25. e4 {[%emt 0:03:29]} c4 {[%emt 0:02:37]} 26. Nf3 {[%emt 0:05:26]} c3 {[%emt 0:00:53]} 27. Be3 {[%emt 0:01:01]} Nb4 {[%emt 0:01:14]} 28. Rcc1 {[%emt 0:00:01]} Rc8 {[%emt 0:07:56]} 29. Nxe5 {[%emt 0:00:28]} dxe5 {[%emt 0:00:03]} 30. Rb1 {[%emt 0:01:35]} Rxb1 {[%emt 0:00:43]} 31. Rxb1 {[%emt 0:00:05]} c2 {[%emt 0:00:46]} 32. Ra1 {[%emt 0:02:40]} Rc3 {[%emt 0:01:57]} 33. Bf1 {[%emt 0:01:22]} Bxf1 {[%emt 0:00:13]} 34. Kxf1 {[%emt 0:00:02]} Rxe3 {[%emt 0:00:08]} 35. fxe3 {[%emt 0:00:47]} Nd3 {[%emt 0:00:07]} 36. Ke2 {[%emt 0:01:10]} c1=Q {[%emt 0:00:03]} 37. Rxc1 {[%emt 0:00:06]} Nxc1+ {[%emt 0:00:02]} 38. Kd2 {[%emt 0:00:14]} Nb3+ {[%emt 0:00:21]} 39. Kc3 {[%emt 0:00:24]} Nc5 {[%emt 0:00:02]} 40. Kb4 {[%emt 0:00:00]} Nxe4 {[%emt 0:00:00]} 0-1

[Event "Najdorf Memorial-A 2022"]
[Site "Warsaw"]
[Date "2022.07.15"]
[Round "7.16"]
[White "Bojczewski, Mateusz"]
[Black "Shilov, Sergej"]
[Result "1-0"]
[ECO "A10"]
[WhiteElo "1735"]
[BlackElo "2048"]
[Annotator "ChessBase"]
[PlyCount "106"]
[EventDate "2022.07.09"]
[EventType "swiss"]
[EventCountry "POL"]
[SourceTitle "playchess.com"]
[Source "ChessBase"]
[SourceQuality "1"]
[TimeControl "40/5400+30:1800+30"]

1. c4 {[%emt 0:01:27]} d6 {[%emt 0:02:06]} 2. g3 {[%emt 0:00:17]} e5 {[%emt 0:01:12]} 3. Bg2 {[%emt 0:01:25]} Nc6 {[%emt 0:02:27]} 4. Nc3 {[%emt 0:00:59]} f5 {[%emt 0:00:52]} 5. d3 {[%emt 0:03:30]} Nf6 {[%emt 0:02:42]} 6. e3 {[%emt 0:02:13]} Be7 {[%emt 0:07:43]} 7. Nge2 {[%emt 0:01:04]} O-O {[%emt 0:02:07]} 8. a3 {[%emt 0:00:20]} Qe8 {[%emt 0:03:11]} 9. Nd5 {[%emt 0:01:47]} Nxd5 {[%emt 0:02:33]} 10. cxd5 {[%emt 0:00:07]} Nb8 {[%emt 0:00:05]} 11. b4 {[%emt 0:07:41]} c6 {[%emt 0:03:29]} 12. Bb2 {[%emt 0:02:29]} cxd5 {[%emt 0:01:38]} 13. Bxd5+ {[%emt 0:00:39]} Kh8 {[%emt 0:00:02]} 14. Rc1 {[%emt 0:07:07]} Bf6 {[%emt 0:02:09]} 15. O-O {[%emt 0:01:06]} Nc6 {[%emt 0:01:11]} 16. Nc3 {[%emt 0:08:31]} f4 {[%emt 0:03:36]} 17. Ne4 {[%emt 0:14:05]} Bh3 {[%emt 0:06:45]} 18. Re1 {[%emt 0:02:05]} fxe3 {[%emt 0:11:56]} 19. fxe3 {[%emt 0:03:18]} Qd7 {[%emt 0:01:06]} 20. Nf2 {[%emt 0:06:44]} Be6 {[%emt 0:01:04]} 21. Bxe6 {[%emt 0:04:22]} Qxe6 {[%emt 0:00:02]} 22. Qg4 {[%emt 0:02:50]} Qxg4 {[%emt 0:03:47]} 23. Nxg4 {[%emt 0:00:06]} a6 {[%emt 0:00:07]} 24. e4 {[%emt 0:02:17]} Bg5 {[%emt 0:02:19]} 25. Rc2 {[%emt 0:02:37]} Rf3 {[%emt 0:01:55]} 26. Rd1 {[%emt 0:00:25]} h5 {[%emt 0:02:27]} 27. Nf2 {[%emt 0:01:33]} Be3 {[%emt 0:02:48]} 28. Kg2 {[%emt 0:00:19]} Raf8 {[%emt 0:00:18]} 29. Nh3 {[%emt 0:00:41]} g5 {[%emt 0:03:03]} 30. Nf4 {[%emt 0:02:21]} R3xf4 {[%emt 0:11:22]} 31. gxf4 {[%emt 0:00:17]} Rxf4 {[%emt 0:00:03]} 32. Rf1 {[%emt 0:02:46]} Rg4+ {[%emt 0:00:18]} 33. Kh1 {[%emt 0:01:08]} Kh7 {[%emt 0:03:47]} 34. Rg2 {[%emt 0:00:46]} Rh4 {[%emt 0:00:50]} 35. Bc1 {[%emt 0:01:38]} Bxc1 {[%emt 0:00:58]} 36. Rxc1 {[%emt 0:00:04]} Kg6 {[%emt 0:00:09]} 37. Rcg1 {[%emt 0:01:17]} g4 {[%emt 0:00:24]} 38. Rf1 {[%emt 0:06:18]} Nd4 {[%emt 0:00:49]} 39. a4 {[%emt 0:00:32]} Ne6 {[%emt 0:01:05]} 40. Rc1 {[%emt 0:00:00]} Nf4 {[%emt 0:00:00]} 41. Rd2 {[%emt 0:04:25]} Rh3 {[%emt 0:01:15]} 42. b5 {[%emt 0:04:55]} axb5 {[%emt 0:00:39]} 43. axb5 {[%emt 0:00:04]} Re3 {[%emt 0:00:32]} 44. Kg1 {[%emt 0:03:54]} h4 {[%emt 0:00:19]} 45. Rc7 {[%emt 0:11:16]} g3 {[%emt 0:01:21]} 46. hxg3 {[%emt 0:00:07]} hxg3 {[%emt 0:00:06]} 47. Rd1 {[%emt 0:00:05]} Re2 {[%emt 0:00:43]} 48. Rc8 {[%emt 0:01:40]} Nh3+ {[%emt 0:01:29]} 49. Kf1 {[%emt 0:00:07]} Rf2+ {[%emt 0:00:15]} 50. Ke1 {[%emt 0:00:17]} g2 {[%emt 0:00:12]} 51. Rg8+ {[%emt 0:00:33]} Kf7 {[%emt 0:00:18]} 52. Rg3 {[%emt 0:00:34]} Rf1+ {[%emt 0:00:56]} 53. Ke2 {[%emt 0:00:21]} Rxd1 {[%emt 0:00:51]} 1-0

[Event "Najdorf Memorial-A 2022"]
[Site "Warsaw"]
[Date "2022.07.15"]
[Round "7.17"]
[White "Zdybel, Przemyslaw"]
[Black "Celinski, Kamil"]
[Result "0-1"]
[ECO "C89"]
[WhiteElo "2026"]
[BlackElo "1876"]
[Annotator "ChessBase"]
[PlyCount "92"]
[EventDate "2022.07.09"]
[EventType "swiss"]
[EventCountry "POL"]
[SourceTitle "playchess.com"]
[Source "ChessBase"]
[SourceQuality "1"]
[TimeControl "40/5400+30:1800+30"]

1. e4 {[%emt 0:00:02]} e5 {[%emt 0:00:05]} 2. Nf3 {[%emt 0:00:03]} Nc6 {[%emt 0:00:04]} 3. Bb5 {[%emt 0:00:03]} a6 {[%emt 0:00:03]} 4. Ba4 {[%emt 0:00:03]} Nf6 {[%emt 0:00:04]} 5. O-O {[%emt 0:00:02]} Be7 {[%emt 0:00:05]} 6. Re1 {[%emt 0:00:04]} b5 {[%emt 0:00:04]} 7. Bb3 {[%emt 0:00:01]} O-O {[%emt 0:00:06]} 8. c3 {[%emt 0:00:02]} d5 {[%emt 0:00:04]} 9. exd5 {[%emt 0:00:02]} Nxd5 {[%emt 0:00:04]} 10. Nxe5 {[%emt 0:00:02]} Nxe5 {[%emt 0:00:05]} 11. Rxe5 {[%emt 0:00:03]} c6 {[%emt 0:00:05]} 12. d4 {[%emt 0:00:02]} Bd6 {[%emt 0:00:03]} 13. Re1 {[%emt 0:00:02]} Qh4 {[%emt 0:00:05]} 14. g3 {[%emt 0:00:04]} Qh3 {[%emt 0:00:03]} 15. Re4 {[%emt 0:00:03]} g5 {[%emt 0:00:04]} 16. Qf1 {[%emt 0:00:01]} Qh6 {[%emt 0:00:04]} 17. Nd2 {[%emt 0:12:42]} f5 {[%emt 0:00:41]} 18. Re1 {[%emt 0:00:21]} f4 {[%emt 0:00:03]} 19. Qg2 {[%emt 0:08:05]} f3 {[%emt 0:11:13]} 20. Nxf3 {[%emt 0:14:01]} Bh3 {[%emt 0:00:46]} 21. Qh1 {[%emt 0:09:13]} Qf6 {[%emt 0:00:03]} 22. Bxg5 {[%emt 0:01:33]} Qxf3 {[%emt 0:00:06]} 23. Qxf3 {[%emt 0:00:05]} Rxf3 {[%emt 0:00:05]} 24. Bd1 {[%emt 0:22:03]} Rf5 {[%emt 0:08:17]} 25. f4 {[%emt 0:01:39]} Kh8 {[%emt 0:15:46]} 26. Kh1 {[%emt 0:15:13]} Rg8 {[%emt 0:12:06]} 27. Bc2 {[%emt 0:00:05]} Rf7 {[%emt 0:00:55]} 28. Be4 {[%emt 0:00:57]} Bd7 {[%emt 0:10:44]} 29. a4 {[%emt 0:01:29]} b4 {[%emt 0:02:46]} 30. c4 {[%emt 0:00:56]} Nf6 {[%emt 0:02:02]} 31. Bg2 {[%emt 0:00:42]} c5 {[%emt 0:07:55]} 32. Rad1 {[%emt 0:01:52]} Rxg5 {[%emt 0:17:25]} 33. fxg5 {[%emt 0:00:31]} Ng4 {[%emt 0:00:11]} 34. Rd2 {[%emt 0:07:25]} cxd4 {[%emt 0:02:16]} 35. Bd5 {[%emt 0:00:45]} Rf8 {[%emt 0:01:04]} 36. Rxd4 {[%emt 0:00:52]} Nf2+ {[%emt 0:00:57]} 37. Kg1 {[%emt 0:00:55]} Bc5 {[%emt 0:00:21]} 38. Re7 {[%emt 0:04:46]} Bxe7 {[%emt 0:01:39]} 39. g6 {[%emt 0:00:42]} hxg6 {[%emt 0:00:57]} 40. Bg2 {[%emt 0:00:00]} Bxa4 {[%emt 0:00:00]} 41. Rd5 {[%emt 0:01:25]} Bc6 {[%emt 0:01:18]} 42. Re5 {[%emt 0:00:32]} Bxg2 {[%emt 0:00:24]} 43. Kxg2 {[%emt 0:00:12]} Rf7 {[%emt 0:00:25]} 44. Re6 {[%emt 0:00:15]} Nd3 {[%emt 0:00:53]} 45. Rxg6 {[%emt 0:00:08]} Nxb2 {[%emt 0:00:07]} 46. Rxa6 {[%emt 0:00:07]} Nxc4 {[%emt 0:00:16]} 0-1

[Event "Najdorf Memorial-A 2022"]
[Site "Warsaw"]
[Date "2022.07.16"]
[Round "8.1"]
[White "Sarkar, Justin"]
[Black "Pacan-Milej, Kosma"]
[Result "0-1"]
[ECO "E94"]
[WhiteElo "2346"]
[BlackElo "2412"]
[Annotator "ChessBase"]
[PlyCount "68"]
[EventDate "2022.07.09"]
[EventType "swiss"]
[EventCountry "POL"]
[SourceTitle "playchess.com"]
[Source "ChessBase"]
[SourceQuality "1"]
[TimeControl "40/5400+30:1800+30"]

1. d4 {[%emt 0:00:12]} Nf6 {[%emt 0:00:11]} 2. c4 {[%emt 0:00:28]} g6 {[%emt 0:00:14]} 3. Nc3 {[%emt 0:01:03]} Bg7 {[%emt 0:00:11]} 4. e4 {[%emt 0:00:12]} O-O {[%emt 0:00:21]} 5. Nf3 {[%emt 0:01:25]} d6 {[%emt 0:00:18]} 6. Be2 {[%emt 0:00:18]} e5 {[%emt 0:00:30]} 7. O-O {[%emt 0:01:44]} Bg4 {[%emt 0:02:50]} 8. d5 {[%emt 0:02:57]} a5 {[%emt 0:00:21]} 9. Be3 {[%emt 0:04:22]} Na6 {[%emt 0:01:41]} 10. Nd2 {[%emt 0:03:23]} Bd7 {[%emt 0:02:08]} 11. Rb1 {[%emt 0:00:15]} h5 {[%emt 0:03:39]} 12. f3 {[%emt 0:03:18]} Kh7 {[%emt 0:04:39]} 13. a3 {[%emt 0:02:08]} Bh6 {[%emt 0:04:04]} 14. Bxh6 {[%emt 0:00:10]} Kxh6 {[%emt 0:00:05]} 15. b4 {[%emt 0:01:18]} axb4 {[%emt 0:04:23]} 16. axb4 {[%emt 0:00:05]} c5 {[%emt 0:00:18]} 17. dxc6 {[%emt 0:00:22]} bxc6 {[%emt 0:00:15]} 18. b5 {[%emt 0:08:49]} Nc5 {[%emt 0:29:41]} 19. Nb3 {[%emt 0:00:20]} Nxb3 {[%emt 0:03:12]} 20. Rxb3 {[%emt 0:01:07]} cxb5 {[%emt 0:06:01]} 21. cxb5 {[%emt 0:10:07]} Be6 {[%emt 0:01:54]} 22. Ra3 {[%emt 0:13:02]} Qb6+ {[%emt 0:03:13]} 23. Kh1 {[%emt 0:00:14]} Rxa3 {[%emt 0:06:08]} 24. Qc1+ {[%emt 0:00:04]} Kg7 {[%emt 0:00:04]} 25. Qxa3 {[%emt 0:00:06]} h4 {[%emt 0:02:18]} 26. Nd1 {[%emt 0:09:04]} d5 {[%emt 0:03:20]} 27. exd5 {[%emt 0:01:07]} Nxd5 {[%emt 0:00:16]} 28. Bc4 {[%emt 0:00:51]} h3 {[%emt 0:02:08]} 29. g3 {[%emt 0:00:43]} Rc8 {[%emt 0:03:32]} 30. Be2 {[%emt 0:13:48]} Rc2 {[%emt 0:05:01]} 31. Qd3 {[%emt 0:02:00]} Nb4 {[%emt 0:00:32]} 32. Qe4 {[%emt 0:00:33]} Qd4 {[%emt 0:03:41]} 33. Qxd4 {[%emt 0:09:03]} exd4 {[%emt 0:00:04]} 34. Rf2 {[%emt 0:00:05]} Rc1 {[%emt 0:00:25]} 0-1